[Event "Opocensky Memorial 2019"]
[Site "Prague"]
[Date "2019.06.24"]
[Round "4.3"]
[White "Sahidi, Samir"]
[Black "Kourousis, Epaminondas"]
[Result "1-0"]
[ECO "B13"]
[WhiteElo "2380"]
[BlackElo "2394"]
[Annotator "NA"]
[PlyCount "113"]
[EventDate "2019.06.22"]
[EventType "tourn"]
[EventCountry "CZE"]
[SourceTitle "playchess.com"]
[Source "ChessBase"]
[SourceQuality "1"]
[TimeControl "5400+30"]

1. e4 {[%emt 0:00:00]} c6 {[%emt 0:07:22]} 2. d4 {[%emt 0:00:33]} d5 {[%emt 0:00:05]} 3. exd5 {[%emt 0:00:25]} cxd5 {[%emt 0:00:02]} 4. Bd3 {[%emt 0:00:12]} Nc6 {[%emt 0:05:58]} 5. c3 {[%emt 0:00:07]} e6 {[%emt 0:00:11]} 6. Bf4 {[%emt 0:02:23]} Nge7 {[%emt 0:01:25]} 7. Ne2 {[%emt 0:03:53]} Ng6 {[%emt 0:00:52]} 8. Bg3 {[%emt 0:00:27]} Bd6 {[%emt 0:00:30]} 9. Nd2 {[%emt 0:02:44]} O-O {[%emt 0:01:20]} 10. O-O {[%emt 0:01:21]} Bxg3 {[%emt 0:00:28]} 11. hxg3 {[%emt 0:04:46]} Bd7 {[%emt 0:05:33]} 12. f4 {[%emt 0:06:00]} Qb6 {[%emt 0:11:18]} 13. Qb3 {[%emt 0:03:16]} Qc7 {[%emt 0:04:50]} 14. Qc2 {[%emt 0:12:35]} Rac8 {[%emt 0:08:09]} 15. Rac1 {[%emt 0:02:36]} Qb6 {[%emt 0:00:47]} 16. Qb3 {[%emt 0:00:53]} Qxb3 {[%emt 0:01:28]} 17. Nxb3 {[%emt 0:01:22]} b6 {[%emt 0:00:51]} 18. Kh2 {[%emt 0:05:43]} Nge7 {[%emt 0:04:20]} 19. Ng1 {[%emt 0:02:44]} Nf5 {[%emt 0:00:40]} 20. Rce1 {[%emt 0:01:43]} Nd6 {[%emt 0:02:22]} 21. g4 {[%emt 0:01:41]} f6 {[%emt 0:04:20]} 22. Nf3 {[%emt 0:02:15]} Rfe8 {[%emt 0:12:10]} 23. Kg3 {[%emt 0:02:47]} h6 {[%emt 0:07:25]} 24. Rh1 {[%emt 0:01:24]} Kf7 {[%emt 0:02:09]} 25. Rh5 {[%emt 0:03:07]} f5 {[%emt 0:06:24]} 26. g5 {[%emt 0:07:37]} Ne4+ {[%emt 0:00:27]} 27. Bxe4 {[%emt 0:00:05]} dxe4 {[%emt 0:01:24]} 28. Ne5+ {[%emt 0:00:26]} Nxe5 {[%emt 0:00:30]} 29. dxe5 {[%emt 0:00:16]} hxg5 {[%emt 0:00:17]} 30. Rxg5 {[%emt 0:00:13]} Rh8 {[%emt 0:03:04]} 31. Nd4 {[%emt 0:02:04]} Bc6 {[%emt 0:02:45]} 32. Rd1 {[%emt 0:01:12]} Ba4 {[%emt 0:01:08]} 33. Rd2 {[%emt 0:00:19]} Rh1 {[%emt 0:01:23]} 34. Kf2 {[%emt 0:00:56]} Rch8 {[%emt 0:00:07]} 35. b3 {[%emt 0:06:01]} Be8 {[%emt 0:00:07]} 36. c4 {[%emt 0:03:42]} a6 {[%emt 0:02:25]} 37. Nxe6 {[%emt 0:03:03]} g6 {[%emt 0:02:43]} 38. Nc7 {[%emt 0:01:43]} R8h4 {[%emt 0:01:09]} 39. Kg3 {[%emt 0:01:03]} Rh8 {[%emt 0:00:31]} 40. Rd6 {[%emt 0:00:35]} e3 {[%emt 0:00:16]} 41. Rf6+ {[%emt 0:00:19]} Ke7 {[%emt 0:00:36]} 42. Nd5+ {[%emt 0:00:06]} Kd8 {[%emt 0:00:08]} 43. Nxe3 {[%emt 0:00:20]} Re1 {[%emt 0:00:39]} 44. Rd6+ {[%emt 0:00:43]} Kc8 {[%emt 0:00:09]} 45. Nd5 {[%emt 0:00:54]} b5 {[%emt 0:01:07]} 46. Rxa6 {[%emt 0:01:02]} Rd1 {[%emt 0:00:21]} 47. Rd6 {[%emt 0:00:43]} Rd3+ {[%emt 0:00:23]} 48. Kf2 {[%emt 0:00:05]} Rd2+ {[%emt 0:00:15]} 49. Ke3 {[%emt 0:00:16]} Rxa2 {[%emt 0:00:04]} 50. e6 {[%emt 0:02:06]} Rh1 {[%emt 0:00:52]} 51. Kd4 {[%emt 0:00:43]} Re1 {[%emt 0:00:15]} 52. Rb6 {[%emt 0:01:30]} bxc4 {[%emt 0:00:25]} 53. bxc4 {[%emt 0:00:24]} Re4+ {[%emt 0:00:11]} 54. Kc5 {[%emt 0:00:23]} Rc2 {[%emt 0:01:48]} 55. Kd6 {[%emt 0:00:31]} Rd2 {[%emt 0:00:15]} 56. Rg3 {[%emt 0:01:20]} Rxc4 {[%emt 0:00:30]} 57. Rgb3 {[%emt 0:00:06]} 1-0

[Event "Opocensky Memorial 2019"]
[Site "Prague"]
[Date "2019.06.24"]
[Round "4.4"]
[White "Pulpan, Jakub"]
[Black "Ivanov, Mikhail M"]
[Result "1-0"]
[ECO "B08"]
[WhiteElo "2414"]
[BlackElo "2366"]
[Annotator "NA"]
[PlyCount "89"]
[EventDate "2019.06.22"]
[EventType "tourn"]
[EventCountry "CZE"]
[SourceTitle "playchess.com"]
[Source "ChessBase"]
[SourceQuality "1"]
[TimeControl "5400+30"]

1. e4 {[%emt 1:30:30]} g6 {[%emt 1:30:30]} 2. d4 {[%emt 0:00:30]} Bg7 {[%emt 0:00:30]} 3. Nf3 {[%emt 0:00:30]} d6 {[%emt 0:00:30]} 4. Nc3 {[%emt 0:00:30]} a6 {[%emt 0:00:30]} 5. a4 {[%emt 0:00:30]} Nf6 {[%emt 0:00:30]} 6. Be2 {[%emt 0:00:30]} O-O {[%emt 0:00:30]} 7. O-O {[%emt 0:00:30]} Nc6 {[%emt 0:00:30]} 8. d5 {[%emt 0:00:30]} Nb8 {[%emt 0:00:30]} 9. h3 {[%emt 0:00:30]} a5 {[%emt 0:00:30]} 10. Be3 {[%emt 0:00:30]} Na6 {[%emt 0:00:30]} 11. Qd2 {[%emt 0:00:30]} Nb4 {[%emt 0:00:30]} 12. Rfe1 {[%emt 0:00:30]} e5 {[%emt 0:00:30]} 13. dxe6 {[%emt 0:00:30]} Bxe6 {[%emt 0:00:30]} 14. Rad1 {[%emt 0:00:30]} Re8 {[%emt 0:00:30]} 15. Nd4 {[%emt 0:00:30]} Bd7 {[%emt 0:00:30]} 16. Bf3 {[%emt 0:00:30]} Bc6 {[%emt 0:00:30]} 17. Nxc6 {[%emt 0:00:30]} bxc6 {[%emt 0:00:30]} 18. b3 {[%emt 0:00:30]} Nd7 {[%emt 0:00:30]} 19. Nb1 {[%emt 0:00:30]} h5 {[%emt 0:00:30]} 20. Na3 {[%emt 0:00:30]} Qf6 {[%emt 0:00:30]} 21. Rc1 {[%emt 0:00:30]} Na2 {[%emt 0:00:30]} 22. Ra1 {[%emt 0:00:30]} Nc3 {[%emt 0:00:30]} 23. Nc4 {[%emt 0:00:30]} Ne5 {[%emt 0:00:30]} 24. Nxe5 {[%emt 0:00:30]} Qxe5 {[%emt 0:00:30]} 25. Bf4 {[%emt 0:00:30]} Qc5 {[%emt 0:00:30]} 26. Qd3 {[%emt 0:00:30]} Re6 {[%emt 0:00:30]} 27. Be3 {[%emt 0:00:30]} Qe5 {[%emt 0:00:30]} 28. Bd2 {[%emt 0:00:30]} Qc5 {[%emt 0:00:30]} 29. Be3 {[%emt 0:00:30]} Qe5 {[%emt 0:00:30]} 30. Qc4 {[%emt 0:00:30]} d5 {[%emt 0:00:30]} 31. exd5 {[%emt 0:00:30]} cxd5 {[%emt 0:00:30]} 32. Qd3 {[%emt 0:00:30]} Rae8 {[%emt 0:00:30]} 33. Rac1 {[%emt 0:00:30]} d4 {[%emt 0:00:30]} 34. Bd2 {[%emt 0:00:30]} Qc5 {[%emt 0:00:30]} 35. h4 {[%emt 0:00:30]} Be5 {[%emt 0:00:30]} 36. g3 {[%emt 0:00:30]} Kg7 {[%emt 0:00:30]} 37. Kg2 {[%emt 0:00:30]} Na2 {[%emt 0:00:30]} 38. Rcd1 {[%emt 0:00:30]} c6 {[%emt 0:00:30]} 39. Re4 {[%emt 0:00:30]} Nb4 {[%emt 0:00:30]} 40. Bxb4 {[%emt 0:00:30]} Qxb4 {[%emt 0:00:30]} 41. Rde1 {[%emt 0:00:30]} c5 {[%emt 0:00:30]} 42. R4e2 {[%emt 0:00:30]} R6e7 {[%emt 0:00:30]} 43. Bc6 {[%emt 0:00:30]} Rc8 {[%emt 0:00:30]} 44. Bd5 {[%emt 0:00:30]} Rcc7 {[%emt 0:00:30]} 45. Rxe5 {[%emt 0:00:30]} 1-0

[Event "Opocensky Memorial 2019"]
[Site "Prague"]
[Date "2019.06.25"]
[Round "5.1"]
[White "Burdalev, Kirill"]
[Black "Sokolov, Alexander"]
[Result "1-0"]
[ECO "E68"]
[WhiteElo "2385"]
[BlackElo "2382"]
[Annotator "NA"]
[PlyCount "101"]
[EventDate "2019.06.22"]
[EventType "tourn"]
[EventCountry "CZE"]
[SourceTitle "playchess.com"]
[Source "ChessBase"]
[SourceQuality "1"]
[TimeControl "5400+30"]

1. d4 {[%emt 0:20:24]} Nf6 {[%emt 0:00:00]} 2. Nf3 {[%emt 0:00:07]} g6 {[%emt 0:00:00]} 3. c4 {[%emt 0:01:24]} Bg7 {[%emt 0:00:00]} 4. g3 {[%emt 0:00:04]} O-O {[%emt 0:00:04]} 5. Bg2 {[%emt 0:00:03]} d6 {[%emt 0:00:06]} 6. Nc3 {[%emt 0:00:21]} Nbd7 {[%emt 0:00:07]} 7. O-O {[%emt 0:00:04]} e5 {[%emt 0:00:05]} 8. e4 {[%emt 0:00:02]} exd4 {[%emt 0:00:17]} 9. Nxd4 {[%emt 0:00:07]} Re8 {[%emt 0:00:34]} 10. h3 {[%emt 0:02:47]} Nc5 {[%emt 0:00:20]} 11. Re1 {[%emt 0:00:16]} a5 {[%emt 0:00:24]} 12. Ndb5 {[%emt 0:00:11]} Nfd7 {[%emt 0:00:55]} 13. Bg5 {[%emt 0:02:45]} Qxg5 {[%emt 0:06:55]} 14. Nxc7 {[%emt 0:00:09]} Qd8 {[%emt 0:01:42]} 15. Nxa8 {[%emt 0:00:19]} Bxc3 {[%emt 0:01:50]} 16. bxc3 {[%emt 0:00:06]} Ne5 {[%emt 0:00:32]} 17. Rb1 {[%emt 0:05:47]} Nxc4 {[%emt 0:02:24]} 18. Bf1 {[%emt 0:02:35]} Be6 {[%emt 0:00:13]} 19. Bxc4 {[%emt 0:04:23]} Bxc4 {[%emt 0:00:09]} 20. Nb6 {[%emt 0:00:13]} Bxa2 {[%emt 0:05:33]} 21. Rb2 {[%emt 0:01:09]} Be6 {[%emt 0:00:14]} 22. Qd4 {[%emt 0:03:56]} Nb3 {[%emt 0:03:50]} 23. Qe3 {[%emt 0:00:10]} Qc7 {[%emt 0:08:32]} 24. c4 {[%emt 0:07:32]} Nc5 {[%emt 0:04:13]} 25. h4 {[%emt 0:01:19]} h5 {[%emt 0:06:04]} 26. Qc3 {[%emt 0:07:00]} Qc6 {[%emt 0:13:03]} 27. f3 {[%emt 0:00:33]} Qc7 {[%emt 0:04:10]} 28. Kg2 {[%emt 0:00:54]} Qc6 {[%emt 0:00:47]} 29. Ree2 {[%emt 0:02:20]} a4 {[%emt 0:02:42]} 30. Re3 {[%emt 0:10:27]} Qc7 {[%emt 0:05:07]} 31. Qb4 {[%emt 0:02:31]} Bd7 {[%emt 0:08:04]} 32. Nd5 {[%emt 0:00:25]} Qd8 {[%emt 0:00:03]} 33. e5 {[%emt 0:02:54]} Bc6 {[%emt 0:04:06]} 34. Rbe2 {[%emt 0:04:22]} Bxd5 {[%emt 0:07:09]} 35. cxd5 {[%emt 0:00:08]} b6 {[%emt 0:00:21]} 36. exd6 {[%emt 0:05:19]} Rf8 {[%emt 0:00:56]} 37. Qf4 {[%emt 0:04:45]} Nb7 {[%emt 0:00:58]} 38. Qxa4 {[%emt 0:00:23]} Nxd6 {[%emt 0:00:10]} 39. Qc6 {[%emt 0:00:09]} Qb8 {[%emt 0:02:51]} 40. f4 {[%emt 0:03:55]} Rc8 {[%emt 0:03:31]} 41. Qa4 {[%emt 0:01:45]} b5 {[%emt 0:01:37]} 42. Qa6 {[%emt 0:00:37]} b4 {[%emt 0:02:34]} 43. Rb3 {[%emt 0:01:10]} Rc4 {[%emt 0:01:30]} 44. Reb2 {[%emt 0:02:53]} Qe8 {[%emt 0:00:49]} 45. Qxd6 {[%emt 0:02:29]} Qe4+ {[%emt 0:00:35]} 46. Rf3 {[%emt 0:00:08]} Rc3 {[%emt 0:01:59]} 47. Rbf2 {[%emt 0:00:33]} Rc1 {[%emt 0:00:43]} 48. Qe5 {[%emt 0:00:59]} Qb1 {[%emt 0:00:17]} 49. Rf1 {[%emt 0:00:19]} b3 {[%emt 0:00:31]} 50. Rxc1 {[%emt 0:00:20]} Qxc1 {[%emt 0:00:05]} 51. Qb8+ {[%emt 0:00:21]} 1-0

[Event "Opocensky Memorial 2019"]
[Site "Prague"]
[Date "2019.06.25"]
[Round "5.2"]
[White "Ivanov, Mikhail M"]
[Black "Plischki, Sebastian"]
[Result "1/2-1/2"]
[ECO "A32"]
[WhiteElo "2366"]
[BlackElo "2420"]
[Annotator "NA"]
[PlyCount "31"]
[EventDate "2019.06.22"]
[EventType "tourn"]
[EventCountry "CZE"]
[SourceTitle "playchess.com"]
[Source "ChessBase"]
[SourceQuality "1"]
[TimeControl "5400+30"]

1. d4 {[%emt 0:02:14]} Nf6 {[%emt 0:00:00]} 2. Nf3 {[%emt 0:00:33]} e6 {[%emt 0:00:22]} 3. c4 {[%emt 0:00:31]} c5 {[%emt 0:00:35]} 4. g3 {[%emt 0:01:31]} cxd4 {[%emt 0:00:30]} 5. Nxd4 {[%emt 0:00:06]} Qc7 {[%emt 0:01:15]} 6. Qa4 {[%emt 0:17:55]} b6 {[%emt 0:10:57]} 7. Bf4 {[%emt 0:09:59]} e5 {[%emt 0:30:49]} 8. Bg2 {[%emt 0:00:47]} Nc6 {[%emt 0:02:14]} 9. Nb5 {[%emt 0:10:31]} Qb8 {[%emt 0:01:59]} 10. Bg5 {[%emt 0:00:56]} Be7 {[%emt 0:06:07]} 11. Bxf6 {[%emt 0:06:15]} Bxf6 {[%emt 0:00:21]} 12. N1c3 {[%emt 0:00:20]} a6 {[%emt 0:04:16]} 13. Nd5 {[%emt 0:01:11]} Bd8 {[%emt 0:02:16]} 14. Nbc3 {[%emt 0:00:39]} O-O {[%emt 0:00:24]} 15. O-O {[%emt 0:00:21]} Ra7 {[%emt 0:00:31]} 16. Rfd1 {[%emt 0:44:11]} 1/2-1/2

[Event "Opocensky Memorial 2019"]
[Site "Prague"]
[Date "2019.06.25"]
[Round "5.3"]
[White "Kourousis, Epaminondas"]
[Black "Pulpan, Jakub"]
[Result "0-1"]
[ECO "E05"]
[WhiteElo "2394"]
[BlackElo "2414"]
[Annotator "NA"]
[PlyCount "78"]
[EventDate "2019.06.22"]
[EventType "tourn"]
[EventCountry "CZE"]
[SourceTitle "playchess.com"]
[Source "ChessBase"]
[SourceQuality "1"]
[TimeControl "5400+30"]

1. d4 {[%emt 0:00:00]} Nf6 {[%emt 0:00:00]} 2. Nf3 {[%emt 0:00:13]} d5 {[%emt 0:00:52]} 3. c4 {[%emt 0:00:16]} e6 {[%emt 0:00:26]} 4. g3 {[%emt 0:00:14]} Be7 {[%emt 0:00:15]} 5. Bg2 {[%emt 0:00:16]} O-O {[%emt 0:00:11]} 6. O-O {[%emt 0:00:37]} dxc4 {[%emt 0:00:25]} 7. Qc2 {[%emt 0:00:25]} b6 {[%emt 0:00:08]} 8. Nbd2 {[%emt 0:01:18]} Bb7 {[%emt 0:01:11]} 9. Nxc4 {[%emt 0:00:14]} Nbd7 {[%emt 0:03:33]} 10. Rd1 {[%emt 0:03:12]} Rc8 {[%emt 0:04:53]} 11. Bf4 {[%emt 0:10:08]} Nd5 {[%emt 0:14:48]} 12. Rac1 {[%emt 0:10:26]} Nxf4 {[%emt 0:19:08]} 13. gxf4 {[%emt 0:00:04]} Nf6 {[%emt 0:06:40]} 14. Nce5 {[%emt 0:06:29]} Bd6 {[%emt 0:03:18]} 15. e3 {[%emt 0:06:45]} c5 {[%emt 0:04:21]} 16. Qa4 {[%emt 0:11:10]} cxd4 {[%emt 0:03:36]} 17. Rxc8 {[%emt 0:08:06]} Qxc8 {[%emt 0:00:28]} 18. Nxd4 {[%emt 0:00:04]} Bxg2 {[%emt 0:02:47]} 19. Kxg2 {[%emt 0:00:09]} Qc7 {[%emt 0:07:55]} 20. Nef3 {[%emt 0:06:56]} Nd5 {[%emt 0:04:07]} 21. Qc6 {[%emt 0:00:57]} Qd8 {[%emt 0:03:14]} 22. Kh1 {[%emt 0:02:30]} Ne7 {[%emt 0:01:52]} 23. Qe4 {[%emt 0:01:49]} Bc5 {[%emt 0:00:37]} 24. Rg1 {[%emt 0:04:16]} Nd5 {[%emt 0:05:43]} 25. Nxe6 {[%emt 0:08:18]} fxe6 {[%emt 0:04:13]} 26. Ng5 {[%emt 0:00:03]} Nf6 {[%emt 0:03:37]} 27. Qxe6+ {[%emt 0:00:02]} Kh8 {[%emt 0:00:02]} 28. Nf7+ {[%emt 0:00:11]} Rxf7 {[%emt 0:00:03]} 29. Qxf7 {[%emt 0:00:06]} Ng4 {[%emt 0:02:11]} 30. Rg3 {[%emt 0:12:54]} g6 {[%emt 0:00:49]} 31. Kg2 {[%emt 0:00:27]} Qa8+ {[%emt 0:00:30]} 32. Kg1 {[%emt 0:00:42]} Qd8 {[%emt 0:01:34]} 33. Rh3 {[%emt 0:02:04]} Nf6 {[%emt 0:01:16]} 34. Kg2 {[%emt 0:01:32]} Qa8+ {[%emt 0:00:35]} 35. Kf1 {[%emt 0:01:40]} Nh5 {[%emt 0:01:10]} 36. f5 {[%emt 0:00:51]} Qh1+ {[%emt 0:00:45]} 37. Ke2 {[%emt 0:00:02]} Qe4 {[%emt 0:00:24]} 38. f6 {[%emt 0:03:03]} Nf4+ {[%emt 0:00:18]} 39. Ke1 {[%emt 0:00:28]} Qb1+ {[%emt 0:00:12]} 0-1

[Event "Opocensky Memorial 2019"]
[Site "Prague"]
[Date "2019.06.25"]
[Round "5.4"]
[White "Kozusek, Daniel"]
[Black "Sahidi, Samir"]
[Result "0-1"]
[ECO "A45"]
[WhiteElo "2339"]
[BlackElo "2380"]
[Annotator "NA"]
[PlyCount "116"]
[EventDate "2019.06.22"]
[EventType "tourn"]
[EventCountry "CZE"]
[SourceTitle "playchess.com"]
[Source "ChessBase"]
[SourceQuality "1"]
[TimeControl "5400+30"]

1. d4 {[%emt 1:30:30]} Nf6 {[%emt 1:30:30]} 2. Bg5 {[%emt 0:00:30]} e6 {[%emt 0:00:30]} 3. e4 {[%emt 0:00:30]} h6 {[%emt 0:00:30]} 4. Bxf6 {[%emt 0:00:30]} Qxf6 {[%emt 0:00:30]} 5. c3 {[%emt 0:00:30]} g6 {[%emt 0:00:30]} 6. e5 {[%emt 0:00:30]} Qe7 {[%emt 0:00:30]} 7. Bd3 {[%emt 0:00:30]} d6 {[%emt 0:00:30]} 8. f4 {[%emt 0:00:30]} Bg7 {[%emt 0:00:30]} 9. Nf3 {[%emt 0:00:30]} O-O {[%emt 0:00:30]} 10. Nbd2 {[%emt 0:00:30]} dxe5 {[%emt 0:00:30]} 11. dxe5 {[%emt 0:00:30]} Nd7 {[%emt 0:00:30]} 12. Ne4 {[%emt 0:00:30]} Rd8 {[%emt 0:00:30]} 13. Qe2 {[%emt 0:00:30]} Rb8 {[%emt 0:00:30]} 14. g4 {[%emt 0:00:30]} b5 {[%emt 0:00:30]} 15. O-O-O {[%emt 0:00:30]} b4 {[%emt 0:00:30]} 16. c4 {[%emt 0:00:30]} Bb7 {[%emt 0:00:30]} 17. h4 {[%emt 0:00:30]} b3 {[%emt 0:00:30]} 18. a3 {[%emt 0:00:30]} Nc5 {[%emt 0:00:30]} 19. Bb1 {[%emt 0:00:30]} Na4 {[%emt 0:00:30]} 20. Rxd8+ {[%emt 0:00:30]} Rxd8 {[%emt 0:00:30]} 21. Rd1 {[%emt 0:00:30]} Bxe4 {[%emt 0:00:30]} 22. Rxd8+ {[%emt 0:00:30]} Qxd8 {[%emt 0:00:30]} 23. Bxe4 {[%emt 0:00:30]} Bf8 {[%emt 0:00:30]} 24. Qe3 {[%emt 0:00:30]} Qb8 {[%emt 0:00:30]} 25. Nd2 {[%emt 0:00:30]} Nc5 {[%emt 0:00:30]} 26. h5 {[%emt 0:00:30]} gxh5 {[%emt 0:00:30]} 27. gxh5 {[%emt 0:00:30]} Qb6 {[%emt 0:00:30]} 28. Qg1+ {[%emt 0:00:30]} Kh8 {[%emt 0:00:30]} 29. Qd4 {[%emt 0:00:30]} Kg8 {[%emt 0:00:30]} 30. f5 {[%emt 0:00:30]} Nxe4 {[%emt 0:00:30]} 31. Qxb6 {[%emt 0:00:30]} cxb6 {[%emt 0:00:30]} 32. Nxe4 {[%emt 0:00:30]} exf5 {[%emt 0:00:30]} 33. Nd2 {[%emt 0:00:30]} Bg7 {[%emt 0:00:30]} 34. Nf3 {[%emt 0:00:30]} Kf8 {[%emt 0:00:30]} 35. Kd2 {[%emt 0:00:30]} Ke7 {[%emt 0:00:30]} 36. Ke3 {[%emt 0:00:30]} f6 {[%emt 0:00:30]} 37. e6 {[%emt 0:00:30]} f4+ {[%emt 0:00:30]} 38. Kxf4 {[%emt 0:00:30]} f5 {[%emt 0:00:30]} 39. Kxf5 {[%emt 0:00:30]} Bxb2 {[%emt 0:00:30]} 40. Nd2 {[%emt 0:00:30]} Bxa3 {[%emt 0:00:30]} 41. Nxb3 {[%emt 0:00:30]} Bc5 {[%emt 0:00:30]} 42. Nc1 {[%emt 0:00:30]} a5 {[%emt 0:00:30]} 43. Ne2 {[%emt 0:00:30]} a4 {[%emt 0:00:30]} 44. Nc3 {[%emt 0:00:30]} a3 {[%emt 0:00:30]} 45. Ke5 {[%emt 0:00:30]} Bd6+ {[%emt 0:00:30]} 46. Kf5 {[%emt 0:00:30]} Bc5 {[%emt 0:00:30]} 47. Ke5 {[%emt 0:00:30]} Bf2 {[%emt 0:00:30]} 48. Nd5+ {[%emt 0:00:30]} Ke8 {[%emt 0:00:30]} 49. Nb4 {[%emt 0:00:30]} Be1 {[%emt 0:00:30]} 50. Na2 {[%emt 0:00:30]} Ke7 {[%emt 0:00:30]} 51. Kf5 {[%emt 0:00:30]} Kd6 {[%emt 0:00:30]} 52. c5+ {[%emt 0:00:30]} bxc5 {[%emt 0:00:30]} 53. Kf6 {[%emt 0:00:30]} Bh4+ {[%emt 0:00:30]} 54. Kf7 {[%emt 0:00:30]} Kd5 {[%emt 0:00:30]} 55. e7 {[%emt 0:00:30]} Bxe7 {[%emt 0:00:30]} 56. Kxe7 {[%emt 0:00:30]} Kc4 {[%emt 0:00:30]} 57. Kd6 {[%emt 0:00:30]} Kb3 {[%emt 0:00:30]} 58. Nc1+ {[%emt 0:00:30]} Kc2 {[%emt 0:00:30]} 0-1

[Event "Opocensky Memorial 2019"]
[Site "Prague"]
[Date "2019.06.26"]
[Round "6.1"]
[White "Sokolov, Alexander"]
[Black "Sergeev, Vladimir"]
[Result "1/2-1/2"]
[ECO "B04"]
[WhiteElo "2382"]
[BlackElo "2411"]
[Annotator "NA"]
[PlyCount "81"]
[EventDate "2019.06.22"]
[EventType "tourn"]
[EventCountry "CZE"]
[SourceTitle "playchess.com"]
[Source "ChessBase"]
[SourceQuality "1"]
[TimeControl "5400+30"]

1. e4 {[%emt 0:00:00]} Nf6 {[%emt 0:03:55]} 2. e5 {[%emt 0:00:00]} Nd5 {[%emt 0:00:08]} 3. d4 {[%emt 0:00:00]} d6 {[%emt 0:00:05]} 4. Nf3 {[%emt 0:00:04]} Nb6 {[%emt 0:00:30]} 5. Be2 {[%emt 0:00:50]} g6 {[%emt 0:00:07]} 6. O-O {[%emt 0:00:25]} Bg7 {[%emt 0:00:03]} 7. exd6 {[%emt 0:00:19]} cxd6 {[%emt 0:00:06]} 8. Bg5 {[%emt 0:00:41]} h6 {[%emt 0:00:19]} 9. Bh4 {[%emt 0:00:09]} Nc6 {[%emt 0:05:25]} 10. c3 {[%emt 0:01:34]} d5 {[%emt 0:00:28]} 11. Re1 {[%emt 0:01:33]} a6 {[%emt 0:00:38]} 12. Bd3 {[%emt 0:01:12]} Bg4 {[%emt 0:05:52]} 13. Nbd2 {[%emt 0:00:29]} Qd7 {[%emt 0:00:14]} 14. Qb3 {[%emt 0:00:55]} Nc8 {[%emt 0:01:14]} 15. h3 {[%emt 0:08:19]} Bxf3 {[%emt 0:03:55]} 16. Nxf3 {[%emt 0:00:13]} e6 {[%emt 0:00:24]} 17. Ne5 {[%emt 0:07:41]} Nxe5 {[%emt 0:06:18]} 18. dxe5 {[%emt 0:00:15]} Ne7 {[%emt 0:01:07]} 19. c4 {[%emt 0:03:50]} g5 {[%emt 0:26:11]} 20. Bg3 {[%emt 0:00:32]} dxc4 {[%emt 0:15:52]} 21. Bxc4 {[%emt 0:05:32]} Nc6 {[%emt 0:00:24]} 22. Rad1 {[%emt 0:17:46]} Qe7 {[%emt 0:00:05]} 23. Rd6 {[%emt 0:05:14]} O-O {[%emt 0:00:08]} 24. Qb6 {[%emt 0:03:16]} Rfc8 {[%emt 0:00:57]} 25. Bd3 {[%emt 0:05:02]} Qc7 {[%emt 0:02:12]} 26. Qe3 {[%emt 0:00:15]} Nb4 {[%emt 0:00:39]} 27. Rd1 {[%emt 0:02:14]} Nxd3 {[%emt 0:00:58]} 28. Qxd3 {[%emt 0:00:13]} Qc5 {[%emt 0:02:22]} 29. Qe4 {[%emt 0:02:18]} b5 {[%emt 0:03:44]} 30. b3 {[%emt 0:05:00]} Bf8 {[%emt 0:03:04]} 31. Rd7 {[%emt 0:01:36]} Qc2 {[%emt 0:00:20]} 32. R1d3 {[%emt 0:10:03]} Qb1+ {[%emt 0:04:46]} 33. Kh2 {[%emt 0:00:04]} Rc1 {[%emt 0:00:09]} 34. Bf4 {[%emt 0:01:27]} Rh1+ {[%emt 0:04:43]} 35. Kg3 {[%emt 0:00:05]} Rd1 {[%emt 0:00:15]} 36. Be3 {[%emt 0:05:05]} Rxd3 {[%emt 0:01:12]} 37. Qxd3 {[%emt 0:00:17]} Qxd3 {[%emt 0:01:25]} 38. Rxd3 {[%emt 0:00:07]} Rc8 {[%emt 0:04:01]} 39. h4 {[%emt 0:02:03]} Bg7 {[%emt 0:00:17]} 40. hxg5 {[%emt 0:00:53]} hxg5 {[%emt 0:00:38]} 41. Bxg5 {[%emt 0:01:43]} 1/2-1/2

[Event "Opocensky Memorial 2019"]
[Site "Prague"]
[Date "2019.06.26"]
[Round "6.2"]
[White "Sahidi, Samir"]
[Black "Neuman, Petr"]
[Result "1/2-1/2"]
[ECO "B52"]
[WhiteElo "2380"]
[BlackElo "2395"]
[Annotator "NA"]
[PlyCount "33"]
[EventDate "2019.06.22"]
[EventType "tourn"]
[EventCountry "CZE"]
[SourceTitle "playchess.com"]
[Source "ChessBase"]
[SourceQuality "1"]
[TimeControl "5400+30"]

1. e4 {[%emt 0:00:00]} c5 {[%emt 0:00:00]} 2. Nf3 {[%emt 0:00:00]} d6 {[%emt 0:00:00]} 3. Bb5+ {[%emt 0:01:44]} Bd7 {[%emt 0:00:28]} 4. Bxd7+ {[%emt 0:01:06]} Qxd7 {[%emt 0:00:04]} 5. O-O {[%emt 0:00:28]} Nf6 {[%emt 0:00:06]} 6. Re1 {[%emt 0:01:17]} Nc6 {[%emt 0:02:33]} 7. c4 {[%emt 0:02:24]} Ne5 {[%emt 0:01:03]} 8. d3 {[%emt 0:03:28]} g6 {[%emt 0:04:34]} 9. Nxe5 {[%emt 0:01:47]} dxe5 {[%emt 0:00:04]} 10. Be3 {[%emt 0:00:19]} b6 {[%emt 0:00:30]} 11. Nc3 {[%emt 0:01:52]} e6 {[%emt 0:01:41]} 12. Qa4 {[%emt 0:06:15]} Qxa4 {[%emt 0:01:04]} 13. Nxa4 {[%emt 0:00:12]} O-O-O {[%emt 0:00:11]} 14. Red1 {[%emt 0:01:38]} Be7 {[%emt 0:01:08]} 15. Kf1 {[%emt 0:06:00]} Nd7 {[%emt 0:00:39]} 16. a3 {[%emt 0:06:53]} Nb8 {[%emt 0:00:18]} 17. Rd2 {[%emt 0:14:11]} 1/2-1/2

[Event "Opocensky Memorial 2019"]
[Site "Prague"]
[Date "2019.06.26"]
[Round "6.3"]
[White "Pulpan, Jakub"]
[Black "Kozusek, Daniel"]
[Result "1/2-1/2"]
[ECO "C06"]
[WhiteElo "2414"]
[BlackElo "2339"]
[Annotator "NA"]
[PlyCount "73"]
[EventDate "2019.06.22"]
[EventType "tourn"]
[EventCountry "CZE"]
[SourceTitle "playchess.com"]
[Source "ChessBase"]
[SourceQuality "1"]
[TimeControl "5400+30"]

1. e4 e6 2. d4 d5 3. Nd2 Nf6 4. e5 Nfd7 5. Bd3 c5 {[%emt 1:32:03]} 6. c3 {[%emt 0:02:19]} b6 {[%emt 0:00:30]} 7. Nh3 {[%emt 0:00:30]} Be7 {[%emt 0:00:30]} 8. O-O {[%emt 0:00:30]} Ba6 {[%emt 0:00:30]} 9. Bxa6 {[%emt 0:00:30]} Nxa6 {[%emt 0:00:30]} 10. f4 {[%emt 0:00:30]} g6 {[%emt 0:00:30]} 11. Nf3 {[%emt 0:00:30]} b5 {[%emt 0:00:30]} 12. Qe2 {[%emt 0:00:30]} Qb6 {[%emt 0:00:30]} 13. a3 {[%emt 0:00:30]} c4 {[%emt 0:00:30]} 14. Be3 {[%emt 0:00:30]} Nc7 {[%emt 0:00:30]} 15. Bf2 {[%emt 0:00:30]} a5 {[%emt 0:00:30]} 16. Bh4 {[%emt 0:00:30]} Bxh4 {[%emt 0:00:30]} 17. Nxh4 {[%emt 0:00:30]} O-O-O {[%emt 0:00:30]} 18. Nf2 {[%emt 0:00:30]} a4 {[%emt 0:00:30]} 19. Ng4 {[%emt 0:00:30]} h6 {[%emt 0:00:30]} 20. Nf3 {[%emt 0:00:30]} Rdg8 {[%emt 0:00:30]} 21. Qf2 {[%emt 0:00:30]} Ne8 {[%emt 0:00:30]} 22. Rae1 {[%emt 0:00:30]} Qd8 {[%emt 0:00:30]} 23. Qh4 {[%emt 0:00:30]} Ng7 {[%emt 0:00:30]} 24. Qxd8+ {[%emt 0:00:30]} Kxd8 {[%emt 0:00:30]} 25. Ne3 {[%emt 0:00:30]} Nf5 {[%emt 0:00:30]} 26. g4 {[%emt 0:00:30]} Nxe3 {[%emt 0:00:30]} 27. Rxe3 {[%emt 0:00:30]} h5 {[%emt 0:00:30]} 28. Ng5 {[%emt 0:00:30]} Ke7 {[%emt 0:00:30]} 29. h3 {[%emt 0:00:30]} hxg4 {[%emt 0:00:30]} 30. hxg4 {[%emt 0:00:30]} Rh4 {[%emt 0:00:30]} 31. Rg3 {[%emt 0:00:30]} Rgh8 {[%emt 0:00:30]} 32. Nf3 {[%emt 0:00:30]} Rh1+ {[%emt 0:00:30]} 33. Kg2 {[%emt 0:00:30]} Rxf1 {[%emt 0:00:30]} 34. Kxf1 {[%emt 0:00:30]} Rh1+ {[%emt 0:00:30]} 35. Rg1 {[%emt 0:00:30]} Rxg1+ {[%emt 0:00:30]} 36. Kxg1 {[%emt 0:00:30]} Nb8 {[%emt 0:00:30]} 37. Kf2 {[%emt 0:00:30]} 1/2-1/2